[Event "GER-ch Blitz 2019"]
[Site "Magdeburg"]
[Date "2019.05.25"]
[Round "16.10"]
[White "Stern, Rene"]
[Black "Kirchner, Thomas"]
[Result "1-0"]
[ECO "E91"]
[WhiteElo "2538"]
[BlackElo "2311"]
[Annotator "ChessBase"]
[PlyCount "61"]
[EventDate "2019.05.25"]
[EventType "tourn"]
[EventCountry "GER"]
[Tiebreak "Number of wins+Number of black wins"]
[SourceTitle "playchess.com"]
[Source "ChessBase"]
[SourceQuality "1"]
[TimeControl "180+2"]

1. Nf3 {[%emt 0:00:00]} Nf6 {[%emt 0:00:00]} 2. c4 {[%emt 0:00:00]} g6 {
[%emt 0:00:00]} 3. Nc3 {[%emt 0:00:01]} Bg7 {[%emt 0:00:00]} 4. e4 {[%emt 0:00:
00]} d6 {[%emt 0:00:01]} 5. d4 {[%emt 0:00:01]} O-O {[%emt 0:00:01]} 6. Be2 {
[%emt 0:00:01]} b6 {[%emt 0:00:01]} 7. O-O {[%emt 0:00:03]} Bb7 {[%emt 0:00:00]
} 8. Qc2 {[%emt 0:00:02]} Nc6 {[%emt 0:00:03]} 9. d5 {[%emt 0:00:08]} Ne5 {
[%emt 0:00:07]} 10. Nxe5 {[%emt 0:00:03]} dxe5 {[%emt 0:00:00]} 11. f4 {
[%emt 0:00:15]} exf4 {[%emt 0:00:07]} 12. Bxf4 {[%emt 0:00:01]} Nd7 {[%emt 0:
00:01]} 13. Nb5 {[%emt 0:00:06]} Ne5 {[%emt 0:00:12]} 14. Qc3 {[%emt 0:00:01]}
Nd7 {[%emt 0:00:16]} 15. Qg3 {[%emt 0:00:05]} c6 {[%emt 0:00:05]} 16. Nc3 {
[%emt 0:00:25]} Nc5 {[%emt 0:00:12]} 17. Rad1 {[%emt 0:00:11]} Qd7 {[%emt 0:00:
53]} 18. e5 {[%emt 0:00:07]} cxd5 {[%emt 0:00:08]} 19. cxd5 {[%emt 0:00:02]}
Rad8 {[%emt 0:00:07]} 20. b4 {[%emt 0:00:13]} Na6 {[%emt 0:00:14]} 21. a3 {
[%emt 0:00:03]} Qc8 {[%emt 0:00:10]} 22. Rc1 Qa8 {[%emt 0:00:01]} 23. Rfd1 {
[%emt 0:00:24]} Rc8 {[%emt 0:00:06]} 24. Bg5 {[%emt 0:00:13]} Rfe8 {[%emt 0:00:
03]} 25. Bb5 {[%emt 0:00:03]} Nc7 {[%emt 0:00:24]} 26. Bxe8 {[%emt 0:00:03]}
Rxe8 {[%emt 0:00:00]} 27. d6 {[%emt 0:00:12]} exd6 {[%emt 0:00:10]} 28. exd6
Ne6 29. d7 {[%emt 0:00:10]} Rb8 {[%emt 0:00:07]} 30. Qxb8+ {[%emt 0:00:18]}
Qxb8 {[%emt 0:00:01]} 31. d8=Q+ {[%emt 0:00:03]} 1-0

[Event "GER-ch Blitz 2019"]
[Site "Magdeburg"]
[Date "2019.05.25"]
[Round "16.11"]
[White "Heidrich, Manfred"]
[Black "Hirneise, Jens"]
[Result "1/2-1/2"]
[ECO "B22"]
[WhiteElo "2351"]
[BlackElo "2375"]
[Annotator "NA"]
[PlyCount "41"]
[EventDate "2019.05.25"]
[EventType "tourn"]
[EventCountry "GER"]
[Tiebreak "Number of wins+Number of black wins"]
[SourceTitle "playchess.com"]
[Source "ChessBase"]
[SourceQuality "1"]
[TimeControl "180+2"]

1. e4 {[%emt 0:00:00]} c5 {[%emt 0:00:00]} 2. c3 {[%emt 0:00:00]} d6 {[%emt 0:
00:01]} 3. d4 {[%emt 0:00:01]} Nf6 {[%emt 0:00:01]} 4. dxc5 {[%emt 0:00:16]}
Nxe4 {[%emt 0:00:07]} 5. cxd6 {[%emt 0:00:00]} Nc6 {[%emt 0:00:07]} 6. Nf3 {
[%emt 0:00:06]} Nxd6 {[%emt 0:00:14]} 7. Be2 {[%emt 0:00:05]} g6 {[%emt 0:00:
02]} 8. O-O {[%emt 0:00:04]} Bg7 {[%emt 0:00:00]} 9. Nbd2 {[%emt 0:00:02]} O-O
{[%emt 0:00:02]} 10. Nc4 {[%emt 0:00:03]} Nxc4 {[%emt 0:00:08]} 11. Bxc4 {
[%emt 0:00:02]} Bg4 {[%emt 0:00:03]} 12. Qxd8 {[%emt 0:00:06]} Rfxd8 {[%emt 0:
00:18]} 13. Be2 {[%emt 0:00:06]} Bf5 {[%emt 0:00:10]} 14. Be3 {[%emt 0:00:04]}
Bd3 {[%emt 0:00:08]} 15. Bxd3 {[%emt 0:00:01]} Rxd3 {[%emt 0:00:01]} 16. Rfd1 {
[%emt 0:00:01]} Rad8 {[%emt 0:00:04]} 17. Rxd3 {[%emt 0:00:00]} Rxd3 {[%emt 0:
00:01]} 18. Kf1 {[%emt 0:00:01]} Kf8 {[%emt 0:00:16]} 19. Ke2 {[%emt 0:00:01]}
Rd7 {[%emt 0:00:04]} 20. Rd1 {[%emt 0:00:04]} Rxd1 {[%emt 0:00:02]} 21. Kxd1 {
[%emt 0:00:00]} 1/2-1/2

[Event "GER-ch Blitz 2019"]
[Site "Magdeburg"]
[Date "2019.05.25"]
[Round "16.12"]
[White "Frischmann, Rick"]
[Black "Svane, Frederik"]
[Result "1-0"]
[ECO "B41"]
[WhiteElo "2320"]
[BlackElo "2342"]
[Annotator "NA"]
[PlyCount "69"]
[EventDate "2019.05.25"]
[EventType "tourn"]
[EventCountry "GER"]
[Tiebreak "Number of wins+Number of black wins"]
[SourceTitle "playchess.com"]
[Source "ChessBase"]
[SourceQuality "1"]
[TimeControl "180+2"]

1. e4 {[%emt 0:00:00]} c5 {[%emt 0:00:01]} 2. Nf3 {[%emt 0:00:01]} e6 {[%emt 0:
00:00]} 3. d4 {[%emt 0:00:01]} cxd4 {[%emt 0:00:01]} 4. Nxd4 {[%emt 0:00:01]}
a6 {[%emt 0:00:01]} 5. c4 {[%emt 0:00:00]} Nf6 {[%emt 0:00:01]} 6. Nc3 {
[%emt 0:00:01]} Qc7 {[%emt 0:00:01]} 7. a3 {[%emt 0:00:02]} b6 {[%emt 0:00:01]}
8. Be3 {[%emt 0:00:01]} Bb7 {[%emt 0:00:01]} 9. f3 {[%emt 0:00:01]} d6 {
[%emt 0:00:02]} 10. Be2 {[%emt 0:00:02]} Nbd7 {[%emt 0:00:01]} 11. O-O {
[%emt 0:00:01]} Rc8 {[%emt 0:00:00]} 12. Rc1 {[%emt 0:00:03]} Qb8 {[%emt 0:00:
01]} 13. Qd2 {[%emt 0:00:01]} Be7 {[%emt 0:00:02]} 14. b4 {[%emt 0:00:02]} Bd8
{[%emt 0:00:01]} 15. Rfd1 {[%emt 0:00:02]} O-O {[%emt 0:00:14]} 16. Nb3 {
[%emt 0:00:01]} Bc7 {[%emt 0:00:02]} 17. Bf4 {[%emt 0:00:00]} Ne5 {[%emt 0:00:
01]} 18. Bxe5 {[%emt 0:00:01]} dxe5 {[%emt 0:00:01]} 19. c5 {[%emt 0:00:01]}
bxc5 {[%emt 0:00:23]} 20. Nxc5 {[%emt 0:00:01]} Bb6 {[%emt 0:00:04]} 21. N3a4 {
[%emt 0:00:01]} a5 {[%emt 0:01:24]} 22. Nxb6 {[%emt 0:00:01]} Rcd8 {[%emt 0:00:
35]} 23. Qe3 {[%emt 0:00:05]} Qa7 {[%emt 0:00:04]} 24. Nc4 {[%emt 0:00:10]}
axb4 {[%emt 0:00:02]} 25. axb4 {[%emt 0:00:01]} Bc6 {[%emt 0:00:06]} 26. Nxe5 {
[%emt 0:00:03]} Rxd1+ {[%emt 0:00:23]} 27. Rxd1 {[%emt 0:00:02]} Ba8 {[%emt 0:
00:04]} 28. Qd4 {[%emt 0:00:04]} h6 {[%emt 0:00:06]} 29. Ncd7 {[%emt 0:00:06]}
Qa4 {[%emt 0:00:09]} 30. Nxf6+ {[%emt 0:00:03]} gxf6 {[%emt 0:00:02]} 31. Ng4 {
[%emt 0:00:01]} e5 {[%emt 0:00:02]} 32. Qd2 {[%emt 0:00:04]} h5 {[%emt 0:00:04]
} 33. Nxf6+ {[%emt 0:00:05]} Kg7 {[%emt 0:00:02]} 34. Qg5+ {[%emt 0:00:01]} Kh8
35. Qh6# 1-0

[Event "GER-ch Blitz 2019"]
[Site "Magdeburg"]
[Date "2019.05.25"]
[Round "16.13"]
[White "Schulze, Marc"]
[Black "Zuyev, Igor"]
[Result "1/2-1/2"]
[ECO "A45"]
[WhiteElo "2220"]
[BlackElo "2447"]
[Annotator "NA"]
[PlyCount "29"]
[EventDate "2019.05.25"]
[EventType "tourn"]
[EventCountry "GER"]
[Tiebreak "Number of wins+Number of black wins"]
[SourceTitle "playchess.com"]
[Source "ChessBase"]
[SourceQuality "1"]
[TimeControl "180+2"]

1. d4 {[%emt 0:00:00]} Nf6 {[%emt 0:00:00]} 2. Bf4 {[%emt 0:00:01]} c5 {
[%emt 0:00:07]} 3. e3 {[%emt 0:00:01]} cxd4 {[%emt 0:00:16]} 4. exd4 {[%emt 0:
00:02]} d6 {[%emt 0:00:04]} 5. c3 {[%emt 0:00:03]} h6 {[%emt 0:00:05]} 6. h3 {
[%emt 0:00:02]} Bf5 {[%emt 0:00:07]} 7. Bd3 {[%emt 0:00:06]} Bxd3 {[%emt 0:00:
06]} 8. Qxd3 {[%emt 0:00:01]} e6 {[%emt 0:00:02]} 9. Nf3 {[%emt 0:00:03]} Be7 {
[%emt 0:00:05]} 10. Nbd2 {[%emt 0:00:01]} O-O {[%emt 0:00:05]} 11. O-O {
[%emt 0:00:03]} d5 {[%emt 0:00:05]} 12. Qb5 {[%emt 0:00:09]} Qd7 {[%emt 0:00:
05]} 13. Qxd7 {[%emt 0:00:02]} Nbxd7 {[%emt 0:00:04]} 14. Ne5 {[%emt 0:00:10]}
Nxe5 {[%emt 0:00:06]} 15. Bxe5 {[%emt 0:00:01]} 1/2-1/2

[Event "GER-ch Blitz 2019"]
[Site "Magdeburg"]
[Date "2019.05.25"]
[Round "16.14"]
[White "Stein, Robert"]
[Black "Zelbel, Patrick"]
[Result "0-1"]
[ECO "A62"]
[WhiteElo "2318"]
[BlackElo "2439"]
[Annotator "NA"]
[PlyCount "50"]
[EventDate "2019.05.25"]
[EventType "tourn"]
[EventCountry "GER"]
[Tiebreak "Number of wins+Number of black wins"]
[SourceTitle "playchess.com"]
[Source "ChessBase"]
[SourceQuality "1"]
[TimeControl "180+2"]

1. d4 {[%emt 0:00:00]} Nf6 {[%emt 0:00:00]} 2. c4 {[%emt 0:00:00]} e6 {[%emt 0:
00:00]} 3. g3 {[%emt 0:00:01]} c5 4. d5 exd5 5. cxd5 {[%emt 0:00:02]} d6 {
[%emt 0:00:01]} 6. Nc3 {[%emt 0:00:00]} g6 {[%emt 0:00:00]} 7. Bg2 Bg7 8. Nf3 {
[%emt 0:00:02]} O-O {[%emt 0:00:01]} 9. O-O {[%emt 0:00:01]} Re8 {[%emt 0:00:
01]} 10. Bf4 {[%emt 0:00:00]} Ne4 {[%emt 0:00:01]} 11. Nxe4 {[%emt 0:00:01]}
Rxe4 {[%emt 0:00:01]} 12. Nd2 {[%emt 0:00:01]} Rxf4 {[%emt 0:00:01]} 13. gxf4 {
[%emt 0:00:01]} Bxb2 14. Rb1 Bg7 15. e4 Nd7 {[%emt 0:00:19]} 16. Qf3 {[%emt 0:
00:16]} Bh6 {[%emt 0:00:07]} 17. Nc4 {[%emt 0:00:02]} Nb6 {[%emt 0:00:03]} 18.
Nxb6 {[%emt 0:00:11]} axb6 {[%emt 0:00:01]} 19. e5 {[%emt 0:00:01]} Ra4 {
[%emt 0:01:24]} 20. e6 {[%emt 0:00:33]} fxe6 {[%emt 0:00:36]} 21. dxe6 {
[%emt 0:00:04]} Bxe6 {[%emt 0:00:02]} 22. Qxb7 {[%emt 0:00:03]} Bxf4 {[%emt 0:
00:10]} 23. Rxb6 {[%emt 0:00:07]} Qh4 {[%emt 0:00:11]} 24. Re1 {[%emt 0:00:29]}
Bxh2+ {[%emt 0:00:17]} 25. Kf1 {[%emt 0:00:02]} Qc4+ {[%emt 0:00:11]} 0-1

[Event "GER-ch Blitz 2019"]
[Site "Magdeburg"]
[Date "2019.05.25"]
[Round "16.15"]
[White "Kopylov, Daniel"]
[Black "Schmaltz, Roland"]
[Result "0-1"]
[ECO "B90"]
[WhiteElo "2263"]
[BlackElo "2461"]
[Annotator "ChessBase"]
[PlyCount "64"]
[EventDate "2019.05.25"]
[EventType "tourn"]
[EventCountry "GER"]
[Tiebreak "Number of wins+Number of black wins"]
[SourceTitle "playchess.com"]
[Source "ChessBase"]
[SourceQuality "1"]
[TimeControl "180+2"]

1. e4 {[%emt 0:00:00]} c5 {[%emt 0:00:00]} 2. Nf3 {[%emt 0:00:00]} d6 {[%emt 0:
00:00]} 3. d4 {[%emt 0:00:01]} cxd4 {[%emt 0:00:00]} 4. Nxd4 {[%emt 0:00:01]}
Nf6 {[%emt 0:00:00]} 5. Nc3 {[%emt 0:00:01]} a6 {[%emt 0:00:01]} 6. Be3 {
[%emt 0:00:01]} e6 {[%emt 0:00:02]} 7. Be2 {[%emt 0:00:02]} h5 {[%emt 0:00:07]}
8. O-O {[%emt 0:00:14]} Nbd7 {[%emt 0:00:03]} 9. f4 {[%emt 0:00:10]} Qc7 {
[%emt 0:00:04]} 10. Bf3 {[%emt 0:00:02]} Rb8 {[%emt 0:00:09]} 11. Qd2 {[%emt 0:
00:07]} b5 {[%emt 0:00:03]} 12. Rae1 {[%emt 0:00:04]} Be7 {[%emt 0:00:06]} 13.
a3 {[%emt 0:00:14]} Bb7 {[%emt 0:00:05]} 14. Bf2 {[%emt 0:00:19]} Ng4 {[%emt 0:
00:13]} 15. Nd5 {[%emt 0:00:48]} exd5 {[%emt 0:00:08]} 16. exd5 {[%emt 0:00:01]
} Kf8 {[%emt 0:00:11]} 17. Rxe7 {[%emt 0:01:02]} Kxe7 {[%emt 0:00:02]} 18. Nf5+
{[%emt 0:00:11]} Kf8 {[%emt 0:00:03]} 19. Bd4 {[%emt 0:00:02]} Ngf6 {[%emt 0:
00:09]} 20. Nxg7 {[%emt 0:00:14]} Kxg7 {[%emt 0:00:09]} 21. f5 {[%emt 0:00:00]}
Qd8 {[%emt 0:00:13]} 22. Qg5+ {[%emt 0:00:02]} Kf8 {[%emt 0:00:00]} 23. Re1 {
[%emt 0:00:04]} Ne5 {[%emt 0:00:07]} 24. Rxe5 {[%emt 0:00:05]} dxe5 {[%emt 0:
00:01]} 25. Bc5+ {[%emt 0:00:00]} Ke8 {[%emt 0:00:04]} 26. a4 {[%emt 0:00:01]}
Rg8 {[%emt 0:00:11]} 27. Qe3 {[%emt 0:00:01]} Nd7 {[%emt 0:00:11]} 28. Bd6 {
[%emt 0:00:01]} Qg5 {[%emt 0:00:05]} 29. Qa7 {[%emt 0:00:05]} Qc1+ 30. Kf2 Qd2+
{[%emt 0:00:08]} 31. Kg1 {[%emt 0:00:01]} Qd4+ {[%emt 0:00:01]} 32. Qxd4 {
[%emt 0:00:03]} exd4 {[%emt 0:00:01]} 0-1

[Event "GER-ch Blitz 2019"]
[Site "Magdeburg"]
[Date "2019.05.25"]
[Round "17.1"]
[White "Gustafsson, Jan"]
[Black "Braeuning, Rudolf Wilhelm"]
[Result "1-0"]
[ECO "A05"]
[WhiteElo "2639"]
[BlackElo "2285"]
[Annotator "ChessBase"]
[PlyCount "83"]
[EventDate "2019.05.25"]
[EventType "tourn"]
[EventCountry "GER"]
[Tiebreak "Number of wins+Number of black wins"]
[SourceTitle "playchess.com"]
[Source "ChessBase"]
[SourceQuality "1"]
[TimeControl "180+2"]

1. Nf3 {[%emt 0:00:00]} Nf6 {[%emt 0:00:03]} 2. c4 {[%emt 0:00:01]} Nc6 {
[%emt 0:00:02]} 3. d4 {[%emt 0:00:02]} e6 {[%emt 0:00:01]} 4. Nc3 {[%emt 0:00:
04]} Bb4 {[%emt 0:00:01]} 5. Qc2 {[%emt 0:00:01]} d5 {[%emt 0:00:10]} 6. a3 {
[%emt 0:00:16]} Bxc3+ {[%emt 0:00:02]} 7. Qxc3 {[%emt 0:00:01]} Ne4 {[%emt 0:
00:01]} 8. Qc2 {[%emt 0:00:01]} e5 {[%emt 0:00:03]} 9. e3 {[%emt 0:00:05]} Bf5
{[%emt 0:00:25]} 10. Bd3 {[%emt 0:00:04]} exd4 {[%emt 0:00:13]} 11. exd4 {
[%emt 0:00:04]} O-O {[%emt 0:00:02]} 12. O-O {[%emt 0:00:03]} Re8 {[%emt 0:00:
01]} 13. c5 {[%emt 0:00:02]} Qf6 {[%emt 0:00:08]} 14. Be3 {[%emt 0:00:13]} Bg4
{[%emt 0:00:07]} 15. Ne5 {[%emt 0:00:10]} Nxe5 {[%emt 0:00:24]} 16. dxe5 {
[%emt 0:00:02]} Qxe5 {[%emt 0:00:02]} 17. Rae1 {[%emt 0:00:19]} Nf6 {[%emt 0:
00:21]} 18. c6 {[%emt 0:00:10]} bxc6 {[%emt 0:00:08]} 19. b4 {[%emt 0:00:15]}
Bd7 {[%emt 0:00:12]} 20. f3 {[%emt 0:00:04]} a5 {[%emt 0:00:05]} 21. bxa5 {
[%emt 0:00:11]} Qd6 {[%emt 0:00:17]} 22. Bc5 {[%emt 0:00:05]} Qf4 {[%emt 0:00:
27]} 23. a6 {[%emt 0:00:01]} h5 {[%emt 0:00:09]} 24. a7 {[%emt 0:00:05]} h4 {
[%emt 0:00:01]} 25. Rxe8+ {[%emt 0:00:07]} Nxe8 {[%emt 0:00:09]} 26. h3 {
[%emt 0:00:09]} Nd6 {[%emt 0:00:02]} 27. Rb1 {[%emt 0:00:07]} Nb5 {[%emt 0:00:
11]} 28. Qf2 {[%emt 0:00:08]} g6 {[%emt 0:00:05]} 29. Bf1 {[%emt 0:00:08]} d4 {
[%emt 0:00:02]} 30. Rb4 {[%emt 0:00:09]} Nxa7 {[%emt 0:00:01]} 31. Rxd4 {
[%emt 0:00:01]} Qf5 {[%emt 0:00:01]} 32. Bxa7 {[%emt 0:00:04]} Rxa7 {[%emt 0:
00:01]} 33. Rxd7 {[%emt 0:00:02]} Qxd7 34. Qxa7 {[%emt 0:00:01]} Qd6 {[%emt 0:
00:06]} 35. a4 {[%emt 0:00:04]} c5 {[%emt 0:00:01]} 36. Qa6 {[%emt 0:00:01]}
Qd4+ {[%emt 0:00:02]} 37. Kh1 {[%emt 0:00:01]} Qf2 {[%emt 0:00:05]} 38. a5 {
[%emt 0:00:03]} g5 {[%emt 0:00:02]} 39. Qe2 {[%emt 0:00:03]} Qd4 {[%emt 0:00:
01]} 40. a6 {[%emt 0:00:01]} g4 {[%emt 0:00:01]} 41. fxg4 {[%emt 0:00:02]} c4 {
[%emt 0:00:01]} 42. Qxc4 1-0

[Event "GER-ch Blitz 2019"]
[Site "Magdeburg"]
[Date "2019.05.25"]
[Round "17.2"]
[White "Heistermann, Till"]
[Black "Voege, Tobias"]
[Result "1/2-1/2"]
[ECO "A30"]
[WhiteElo "2181"]
[BlackElo "2294"]
[Annotator "NA"]
[PlyCount "112"]
[EventDate "2019.05.25"]
[EventType "tourn"]
[EventCountry "GER"]
[Tiebreak "Number of wins+Number of black wins"]
[SourceTitle "playchess.com"]
[Source "ChessBase"]
[SourceQuality "1"]
[TimeControl "180+2"]

1. c4 c5 2. g3 {[%emt 0:00:00]} g6 {[%emt 0:00:00]} 3. Bg2 {[%emt 0:00:00]} Bg7
{[%emt 0:00:00]} 4. Nc3 {[%emt 0:00:01]} Nf6 {[%emt 0:00:00]} 5. e3 {[%emt 0:
00:02]} O-O {[%emt 0:00:02]} 6. Nge2 {[%emt 0:00:01]} d6 {[%emt 0:00:05]} 7.
O-O {[%emt 0:00:02]} Nbd7 {[%emt 0:00:09]} 8. d4 {[%emt 0:00:02]} Rb8 {[%emt 0:
00:01]} 9. b3 {[%emt 0:00:02]} a6 {[%emt 0:00:02]} 10. a4 {[%emt 0:00:01]} b6 {
[%emt 0:00:26]} 11. Bb2 {[%emt 0:00:03]} Bb7 {[%emt 0:00:01]} 12. d5 {[%emt 0:
00:05]} Ne8 {[%emt 0:00:08]} 13. Qc2 {[%emt 0:00:03]} e6 {[%emt 0:00:02]} 14.
e4 {[%emt 0:00:02]} Nc7 {[%emt 0:00:06]} 15. Rad1 {[%emt 0:00:19]} exd5 {
[%emt 0:00:12]} 16. exd5 {[%emt 0:00:02]} Re8 {[%emt 0:00:09]} 17. Ne4 {
[%emt 0:00:09]} Ne5 {[%emt 0:00:05]} 18. h3 {[%emt 0:00:07]} f5 {[%emt 0:00:08]
} 19. Nd2 {[%emt 0:00:07]} b5 {[%emt 0:00:05]} 20. axb5 {[%emt 0:00:02]} axb5 {
[%emt 0:00:01]} 21. Nf4 {[%emt 0:00:10]} bxc4 {[%emt 0:00:04]} 22. bxc4 {
[%emt 0:00:01]} Ba6 {[%emt 0:00:03]} 23. Ba1 {[%emt 0:00:10]} Bc8 {[%emt 0:00:
26]} 24. Nd3 {[%emt 0:00:02]} Nxd3 {[%emt 0:00:21]} 25. Qxd3 {[%emt 0:00:01]}
Na6 {[%emt 0:00:03]} 26. Bxg7 {[%emt 0:00:10]} Kxg7 {[%emt 0:00:01]} 27. Rfe1 {
[%emt 0:00:00]} Bd7 {[%emt 0:00:08]} 28. Nf3 {[%emt 0:00:12]} Qf6 {[%emt 0:00:
06]} 29. h4 {[%emt 0:00:03]} Nb4 {[%emt 0:00:03]} 30. Qd2 {[%emt 0:00:01]} h6 {
[%emt 0:00:02]} 31. Bf1 {[%emt 0:00:43]} Ba4 {[%emt 0:00:07]} 32. Rxe8 {
[%emt 0:00:07]} Rxe8 {[%emt 0:00:01]} 33. Re1 {[%emt 0:00:02]} Re4 {[%emt 0:00:
12]} 34. Kg2 {[%emt 0:00:18]} Bb3 {[%emt 0:00:04]} 35. Rc1 {[%emt 0:00:09]} Ba4
{[%emt 0:00:11]} 36. Qc3 {[%emt 0:00:03]} Qxc3 {[%emt 0:00:08]} 37. Rxc3 {
[%emt 0:00:00]} Bd1 {[%emt 0:00:01]} 38. Nd2 {[%emt 0:00:07]} Rd4 {[%emt 0:00:
02]} 39. Nf3 {[%emt 0:00:19]} Bxf3+ 40. Kxf3 {[%emt 0:00:01]} g5 {[%emt 0:00:
02]} 41. hxg5 {[%emt 0:00:02]} hxg5 {[%emt 0:00:01]} 42. Ra3 {[%emt 0:00:04]}
Kf6 {[%emt 0:00:06]} 43. Re3 {[%emt 0:00:04]} Rd1 {[%emt 0:00:08]} 44. Re6+ {
[%emt 0:00:02]} Kf7 {[%emt 0:00:01]} 45. Be2 {[%emt 0:00:01]} Rd4 {[%emt 0:00:
03]} 46. Rxd6 {[%emt 0:00:02]} Nc2 {[%emt 0:00:02]} 47. Rd7+ {[%emt 0:00:06]}
Kf6 {[%emt 0:00:02]} 48. Rc7 {[%emt 0:00:04]} Rd2 {[%emt 0:00:01]} 49. Bf1 {
[%emt 0:00:06]} g4+ {[%emt 0:00:03]} 50. Kg2 {[%emt 0:00:03]} Ne1+ {[%emt 0:00:
01]} 51. Kh1 {[%emt 0:00:08]} Rd1 {[%emt 0:00:02]} 52. Kh2 {[%emt 0:00:01]}
Nf3+ 53. Kg2 Ne1+ {[%emt 0:00:05]} 54. Kg1 {[%emt 0:00:01]} Nf3+ 55. Kg2 {
[%emt 0:00:00]} Ne1+ {[%emt 0:00:09]} 56. Kg1 Ke5 {[%emt 0:00:00]} 1/2-1/2

[Event "GER-ch Blitz 2019"]
[Site "Magdeburg"]
[Date "2019.05.25"]
[Round "17.3"]
[White "Feuerstack, Aljoscha"]
[Black "Barzen, Pascal"]
[Result "1-0"]
[ECO "B10"]
[WhiteElo "2441"]
[BlackElo "2292"]
[Annotator "NA"]
[PlyCount "81"]
[EventDate "2019.05.25"]
[EventType "tourn"]
[EventCountry "GER"]
[Tiebreak "Number of wins+Number of black wins"]
[SourceTitle "playchess.com"]
[Source "ChessBase"]
[SourceQuality "1"]
[TimeControl "180+2"]

1. e4 {[%emt 0:00:00]} c6 {[%emt 0:00:00]} 2. c4 {[%emt 0:00:00]} d5 {[%emt 0:
00:00]} 3. cxd5 {[%emt 0:00:01]} cxd5 {[%emt 0:00:00]} 4. exd5 {[%emt 0:00:01]}
Nf6 {[%emt 0:00:01]} 5. Nc3 {[%emt 0:00:01]} Nxd5 {[%emt 0:00:01]} 6. Nf3 {
[%emt 0:00:01]} Nc6 {[%emt 0:00:01]} 7. Bb5 {[%emt 0:00:01]} g6 {[%emt 0:00:03]
} 8. Qa4 {[%emt 0:00:01]} Nb6 {[%emt 0:00:06]} 9. Bxc6+ {[%emt 0:00:02]} bxc6 {
[%emt 0:00:01]} 10. Qxc6+ {[%emt 0:00:01]} Bd7 {[%emt 0:00:01]} 11. Qe4 {
[%emt 0:00:01]} Bg7 {[%emt 0:00:02]} 12. d4 {[%emt 0:00:02]} O-O {[%emt 0:00:
02]} 13. O-O {[%emt 0:00:01]} Rc8 {[%emt 0:00:07]} 14. Rd1 {[%emt 0:00:05]} Bf5
{[%emt 0:00:06]} 15. Qe2 {[%emt 0:00:05]} Nd5 {[%emt 0:00:15]} 16. Bd2 {
[%emt 0:00:47]} Nb4 {[%emt 0:00:03]} 17. Bg5 {[%emt 0:00:03]} Re8 {[%emt 0:00:
10]} 18. d5 {[%emt 0:00:12]} Qb6 {[%emt 0:00:45]} 19. Rd2 {[%emt 0:00:24]} h6 {
[%emt 0:00:05]} 20. Be3 {[%emt 0:00:04]} Qb7 {[%emt 0:00:01]} 21. Rad1 {
[%emt 0:00:31]} a5 {[%emt 0:00:38]} 22. a3 {[%emt 0:00:14]} Na6 {[%emt 0:00:02]
} 23. Bd4 {[%emt 0:00:02]} e5 {[%emt 0:00:07]} 24. Be3 {[%emt 0:00:09]} Nc5 {
[%emt 0:00:06]} 25. d6 {[%emt 0:00:15]} Red8 {[%emt 0:00:23]} 26. Nd5 {[%emt 0:
00:09]} Rxd6 {[%emt 0:00:20]} 27. Ne7+ {[%emt 0:00:03]} Qxe7 {[%emt 0:00:01]}
28. Rxd6 {[%emt 0:00:02]} Ne4 {[%emt 0:00:01]} 29. Ra6 {[%emt 0:00:08]} Qc7 {
[%emt 0:00:11]} 30. h3 {[%emt 0:00:03]} Nc5 {[%emt 0:00:04]} 31. Rc1 {[%emt 0:
00:04]} Qb7 {[%emt 0:00:11]} 32. Rxa5 {[%emt 0:00:03]} Nb3 {[%emt 0:00:00]} 33.
Rxc8+ {[%emt 0:00:02]} Qxc8 {[%emt 0:00:01]} 34. Rb5 {[%emt 0:00:03]} Na1 {
[%emt 0:00:06]} 35. Qd1 {[%emt 0:00:05]} Nc2 {[%emt 0:00:01]} 36. Rc5 {[%emt 0:
00:01]} Qe6 {[%emt 0:00:05]} 37. Rxc2 {[%emt 0:00:01]} Bxc2 38. Qxc2 {[%emt 0:
00:01]} e4 {[%emt 0:00:02]} 39. Nd2 {[%emt 0:00:02]} f5 {[%emt 0:00:01]} 40.
Qc4 {[%emt 0:00:01]} Kf7 {[%emt 0:00:01]} 41. b4 {[%emt 0:00:01]} 1-0

[Event "GER-ch Blitz 2019"]
[Site "Magdeburg"]
[Date "2019.05.25"]
[Round "17.4"]
[White "Hebbinghaus, Holger"]
[Black "Wichmann, Cliff"]
[Result "0-1"]
[ECO "C01"]
[WhiteElo "2310"]
[BlackElo "2280"]
[Annotator "NA"]
[PlyCount "55"]
[EventDate "2019.05.25"]
[EventType "tourn"]
[EventCountry "GER"]
[Tiebreak "Number of wins+Number of black wins"]
[SourceTitle "playchess.com"]
[Source "ChessBase"]
[SourceQuality "1"]
[TimeControl "180+2"]

1. e4 {[%emt 0:00:00]} e6 {[%emt 0:00:00]} 2. d4 {[%emt 0:00:00]} d5 3. exd5 {
[%emt 0:00:01]} exd5 {[%emt 0:00:00]} 4. Nf3 {[%emt 0:00:01]} Bd6 {[%emt 0:00:
01]} 5. c4 {[%emt 0:00:01]} Nf6 {[%emt 0:00:01]} 6. Nc3 {[%emt 0:00:01]} O-O {
[%emt 0:00:02]} 7. cxd5 {[%emt 0:00:01]} Re8+ {[%emt 0:00:01]} 8. Be2 {[%emt 0:
00:05]} h6 {[%emt 0:00:01]} 9. O-O {[%emt 0:00:03]} Nbd7 {[%emt 0:00:01]} 10.
Bc4 {[%emt 0:00:11]} Nb6 {[%emt 0:00:03]} 11. Bb3 {[%emt 0:00:01]} Bg4 {
[%emt 0:00:02]} 12. h3 {[%emt 0:00:06]} Bh5 {[%emt 0:00:02]} 13. g4 {[%emt 0:
00:10]} Bg6 {[%emt 0:00:02]} 14. Re1 {[%emt 0:00:06]} Ne4 {[%emt 0:00:18]} 15.
Be3 {[%emt 0:00:46]} Qf6 {[%emt 0:00:02]} 16. Ne5 {[%emt 0:00:29]} Bxe5 {
[%emt 0:01:07]} 17. dxe5 {[%emt 0:00:02]} Rxe5 {[%emt 0:00:03]} 18. Bd4 {
[%emt 0:00:42]} Rae8 {[%emt 0:00:16]} 19. Nxe4 {[%emt 0:00:04]} Qf4 {[%emt 0:
00:10]} 20. Bxe5 {[%emt 0:00:04]} Rxe5 {[%emt 0:00:01]} 21. Ng3 {[%emt 0:00:09]
} Nd7 {[%emt 0:00:09]} 22. Qc1 {[%emt 0:00:19]} Qf6 {[%emt 0:00:26]} 23. Rxe5 {
[%emt 0:00:07]} Nxe5 {[%emt 0:00:01]} 24. Qe3 {[%emt 0:00:01]} Nf3+ {[%emt 0:
00:16]} 25. Kh1 {[%emt 0:00:04]} Nd4 {[%emt 0:00:12]} 26. Re1 {[%emt 0:00:08]}
c5 {[%emt 0:00:01]} 27. Bd1 {[%emt 0:00:06]} Kh7 {[%emt 0:00:17]} 28. Kg1 0-1